Cogmind - Beta 13 @@@ ROGUE MODE // 2024.06.02 @ 12:44:21 Player: Blade Result: Destroyed by G-34 Mercenary with Small Laser Performance ------------- Evolutions (1) 500 Regions Visited (2) 400 Robots Destroyed (35) 175 Value Destroyed (799) 799 Prototype IDs (1) 20 Alien Tech Used (0) 0 Bonus (0) 0 TOTAL SCORE: 1894 Bonus ------- None Cogmind --------- Core Integrity 0/400 Matter 297/300 Energy 99/100 System Corruption 4% Temperature Cool (6) Movement Rolling (200) Ox8 Location -9/Materials Parts ------- > --- POWER (1) -------- (None) > --- PROPULSION (2) --- Wheel > --- UTILITY (4) ------ Huge Storage Unit Propulsion Shielding Propulsion Shielding Propulsion Shielding > --- WEAPON (2) ------- Heavy Assault Rifle > --- INVENTORY (25) --- Improved Aluminum Leg Compact Wheel Heat Sink Heat Sink Large Storage Unit High-capacity Storage Unit High-capacity Battery (250) Signal Interpreter Propulsion Shielding Weapon Shielding Small Laser Heavy Assault Rifle Heavy Assault Rifle Heavy Assault Rifle Heavy Assault Rifle Heavy Assault Rifle Heavy Assault Rifle Peak State ------------ > --- POWER ------------ Ion Engine > --- PROPULSION ------- Aluminum Leg Aluminum Leg > --- UTILITY ---------- Huge Storage Unit Propulsion Shielding Propulsion Shielding Propulsion Shielding > --- WEAPON ----------- Heavy Assault Rifle Heavy Assault Rifle > --- INVENTORY -------- Improved Aluminum Leg Heat Sink Heat Sink Large Storage Unit High-capacity Storage Unit High-capacity Battery Signal Interpreter Propulsion Shielding Weapon Shielding Small Laser Heavy Assault Rifle Heavy Assault Rifle Heavy Assault Rifle Heavy Assault Rifle Heavy Assault Rifle Heavy Assault Rifle [Rating: 13] Favorites ----------- Power Ion Engine Engine Ion Engine Propulsion Wheel Leg Aluminum Leg Wheel Wheel Utility Propulsion Shielding Device Sensor Array Storage Huge Storage Unit Protection Propulsion Shielding Weapon Heavy Assault Rifle Energy Gun Small Laser Energy Cannon Beam Cannon Ballistic Gun Heavy Assault Rifle Build | -11 -10 -9 ------- Run | Yrd Mat Mat Slots Evolved 2 | . . 2 Power . | . . . Propulsion . | . . . Utility 2 | . . 2 Weapon . | . . . Parts Attached 30 | . 7 23 Power 2 | . . 2 Engine 2 | . . 2 Core . | . . . Reactor . | . . . Propulsion 11 | . 4 7 Treads . | . . . Leg 2 | . . 2 Wheel 9 | . 4 5 Hover . | . . . Flight . | . . . Utility 7 | . 2 5 Device 1 | . . 1 Storage 3 | . 1 2 Processor . | . . . Hackware . | . . . Protection 3 | . 1 2 Artifact . | . . . Weapon 10 | . 1 9 Energy Gun 5 | . . 5 Energy Cannon 1 | . 1 . Ballistic Gun 4 | . . 4 Ballistic Cannon . | . . . Launcher . | . . . Special Weapon . | . . . Impact Weapon . | . . . Slashing Weapon . | . . . Piercing Weapon . | . . . Special Melee Weapon . | . . . Unidentified Prototypes 1 | . . 1 Parts Lost 14 | . 1 13 Power 3 | . 1 2 Propulsion 4 | . . 4 Utility 1 | . . 1 Weapon 6 | . . 6 Highest Loss Streak 3 | . 1 3 To Critical Strikes . | . . . Average Slot Usage (%) 81 | . 91 78 Engine 5 | . 7 5 Leg 1 | . 1 1 Wheel 15 | . 25 12 Device 1 | . . 2 Storage 11 | . 14 11 Protection 26 | . 12 30 Energy Gun 6 | . 16 3 Energy Cannon 3 | . 11 1 Ballistic Gun 8 | . . 11 Naked Turns . | . . . Heaviest Build 94 | 11 31 94 Greatest Support 32 | 20 32 32 Greatest Overweight (x) 9 | . 1 9 Average Overweight (x) 4 | . . 5 Largest Inventory Capacity 25 | 8 15 25 Average Capacity 22 | 8 14 24 Most Carried 18 | 6 15 18 Average Carried 14 | 6 12 15 Final Capacity 25 | 8 15 25 Final Carried 17 | 6 15 17 Class Distribution -------------------- 100% | Mutant Dominant Class ---------------- Mutant | -10/Materials Mutant | -9/Materials Resources | -11 -10 -9 ----------- Run | Yrd Mat Mat Matter Collected 780 | 160 110 510 Remotely . | . . . Salvage Created 1217 | . 287 930 Parts 70 | . 19 51 Haulers Intercepted 2 | . 1 1 Recyclers Shooed 1 | . . 1 Parts Field Recycled . | . . . Retrieved Matter . | . . . Parts Self-Destructed . | . . . Prevented . | . . . Kills | -11 -10 -9 ------- Run | Yrd Mat Mat Combat Hostiles Destroyed 24 | . 6 18 Guns 21 | . 5 16 Cannons 3 | . 1 2 Classes Destroyed 9 | . 5 4 Worker 3 | . 2 1 Hauler 2 | . 1 1 Recycler 1 | . . 1 Mechanic 1 | . . 1 Watcher 4 | . 1 3 Swarmer 8 | . 4 4 Grunt 14 | . 2 12 Brawler 1 | . . 1 Sentry 1 | . . 1 Best Kill Streak 5 | . 5 4 Combat Bots Only 5 | . 5 4 Max Kills in Single Turn 1 | . 1 1 Gunslinging . | . . . Exploded . | . . . Melee . | . . . Uniques/NPCs Destroyed . | . . . Combat | -11 -10 -9 -------- Run | Yrd Mat Mat Hostile Shots Fired 191 | . 34 157 Missed 50 | . 14 36 Damage Taken 1736 | . 193 1543 Core 441 | . 36 405 Absorbed by Shields . | . . . Redirected to Shielding 81 | . 4 77 Core Remaining (%) 92 | 100 85 . Volleys Fired 132 | . 23 109 Largest 2 | . 2 2 Hottest 100 | . 100 100 Shots Fired 205 | . 46 159 Gun 175 | . 23 152 Cannon 30 | . 23 7 Launcher . | . . . Special . | . . . Kinetic 104 | . . 104 Thermal 81 | . 46 35 Explosive . | . . . Electromagnetic 20 | . . 20 Robot Hit Streak 18 | . 5 18 Robot Miss Streak 5 | . 5 3 Penetration Max . | . . . Secondary Targets 1 | . . 1 Max Gunslinging Chain 1 | . . 1 Shots Hit Robots 123 | . 25 98 Core Hits 53 | . 14 39 Critical Kills . | . . . Critical Parts Destroyed 1 | . . 1 Critical Strikes 2 | . . 2 Destroy 1 | . . 1 Corrupt 1 | . . 1 Melee Attacks . | . . . Impact . | . . . Slashing . | . . . Piercing . | . . . Sneak Attacks . | . . . Combat Hostiles . | . . . Follow-up Attacks . | . . . Damage Inflicted 1823 | . 409 1414 Guns 1492 | . 166 1326 Cannons 313 | . 243 70 Explosions . | . . . Melee . | . . . Ramming 18 | . . 18 Kinetic 994 | . . 994 Thermal 696 | . 409 287 Explosive . | . . . Electromagnetic 115 | . . 115 Impact . | . . . Slashing . | . . . Piercing . | . . . Highest Corruption 4 | . . 4 Average Corruption 2 | . . 2 Corruption Purged . | . . . Corruption Blocked . | . . . Effects 14 | . . 14 Message Errors 6 | . . 6 Matter Fused 4 | . . 4 Heat Flow Errors 2 | . . 2 Energy Discharges 1 | . . 1 Data Loss (minor) 1 | . . 1 Overload Shots . | . . . Overflow Damage . | . . . Projectiles . | . . . Explosions . | . . . Melee . | . . . Knockbacks . | . . . Impact . | . . . Kinetic . | . . . Secondary . | . . . Self-Inflicted Damage 73 | . . 73 Shots 2 | . . 2 Rammed 3 | . . 3 Targets Rammed 3 | . . 3 Kicked . | . . . Crushed . | . . . Highest Temperature 246 | . 246 205 Average Temperature 70 | . 74 65 Received Heat Transfer 660 | . 51 609 Siege Activations . | . . . Robots Corrupted . | . . . Combat Hostiles . | . . . Parts Fried . | . . . Impact Corruptions . | . . . Robots Melted . | . . . Combat Hostiles . | . . . Parts Melted 3 | . 1 2 Heat Transferred 1550 | . 893 657 Parts Sabotaged . | . . . Parts Stolen . | . . . Parts Stripped . | . . . Power Chain Reactions . | . . . Alert | -11 -10 -9 ------- Run | Yrd Mat Mat Peak Influence 202 | . 184 202 Initial . | . . . Average 71 | . 80 68 Maximum Alert Level 1 | . . 1 Low Security (%) 99 | 100 100 98 Level 1 . | . . 1 Level 2 . | . . . Level 3 . | . . . Level 4 . | . . . Level 5 . | . . . High Security . | . . . Max Security . | . . . Squads Dispatched . | . . . Investigation . | . . . Extermination . | . . . Reinforcement . | . . . Assault . | . . . Garrison . | . . . Intercept . | . . . Searches Triggered . | . . . Construction Impeded . | . . . Haulers Reinforced . | . . . Active Scanning Responses . | . . . Cargo Convoy Interrupts . | . . . Stealth | -11 -10 -9 --------- Run | Yrd Mat Mat Distress Signals 4 | . 1 3 Communications Jammed . | . . . Distress Signals . | . . . Times Spotted 43 | . 9 34 Peak Tracking Total 4 | . 3 4 Tactical Retreats 2 | . . 2 Traps | -11 -10 -9 ------- Run | Yrd Mat Mat Traps Triggered 2 | . . 2 Indirectly . | . . . Trap Hack Attempts . | . . . Triggered . | . . . Disarmed . | . . . Reprogrammed . | . . . Reused . | . . . Traps Extracted . | . . . Installed . | . . . Triggered . | . . . Machines | -11 -10 -9 ---------- Run | Yrd Mat Mat Machines Disabled 2 | . . 2 Max in Single Turn 2 | . . 2 Machines Repaired . | . . . Machines Dismantled . | . . . Machines Sabotaged . | . . . Overloaded Fab Kills . | . . . Hacking | -11 -10 -9 --------- Run | Yrd Mat Mat Machines Accessed 4 | . 1 3 Terminals 4 | . 1 3 Fabricators . | . . . Repair Stations . | . . . Recycling Units . | . . . Scanalyzers . | . . . Garrison Access . | . . . Total Hacks 8 | . 3 5 Successful 3 | . 1 2 Failed 5 | . 2 3 Catastrophic 2 | . . 2 Database Lockouts . | . . . Manual 6 | . 3 3 Terminals 8 | . 3 5 Fabricators . | . . . Repair Stations . | . . . Recycling Units . | . . . Scanalyzers . | . . . Garrison Access . | . . . Terminal Hacks 1 | . . 1 Level Access Points 1 | . . 1 Fabricator Hacks . | . . . Repair Station Hacks . | . . . Recycling Unit Hacks . | . . . Scanalyzer . | . . . Garrison Access Hacks . | . . . Unauthorized Hacks 2 | . 1 1 Terminals 2 | . 1 1 Botnet 2 | . 1 1 Fabricators . | . . . Repair Stations . | . . . Recycling Units . | . . . Scanalyzers . | . . . Garrison Access . | . . . Data Cores Recovered . | . . . Used . | . . . Hacking Detections 3 | . 1 2 Full Trace Events . | . . . Feedback Events . | . . . Feedback Blocked . | . . . Robot Schematics Acquired . | . . . Robots Built . | . . . Authchips . | . . . Time . | . . . Total Robot Build Rating . | . . . Part Schematics Acquired . | . . . Parts Built . | . . . Authchips . | . . . Time . | . . . Total Part Build Rating . | . . . Parts Repaired . | . . . Time . | . . . Parts Recycled . | . . . Recycled Matter . | . . . Retrieved Matter . | . . . Retrieved Components . | . . . Parts Scanalyzed . | . . . Part Schematics Acquired . | . . . Parts Damaged . | . . . Bothacking | -11 -10 -9 ------------ Run | Yrd Mat Mat Used RIF Installer . | . . . Robots Hacked . | . . . Non-combat . | . . . Combat . | . . . Robot Hacks Applied . | . . . Relay Couplers Released . | . . . Fabnet Peak Effective % . | . . . Robots Rewired . | . . . Allies Hacked . | . . . Hacks Repelled . | . . . Allies | -11 -10 -9 -------- Run | Yrd Mat Mat Total Allies . | . . . Largest Group . | . . . Highest-Rated Group . | . . . Highest-Rated Ally . | . . . Total Orders . | . . . Ally Attacks . | . . . Total Damage . | . . . Kills . | . . . Allies Corrupted . | . . . Allies Melted . | . . . Intel | -11 -10 -9 ------- Run | Yrd Mat Mat Robot Analysis Total . | . . . Derelict Logs Recovered . | . . . Drone Launches . | . . . Drone Recoveries . | . . . Exploration | -11 -10 -9 ------------- Run | Yrd Mat Mat Turns Passed 2007 | 2 459 1546 Spaces Moved 1027 | 2 359 666 Core . | . . . Treads . | . . . Legs 42 | 2 24 16 Wheels 985 | . 335 650 Hover . | . . . Flight . | . . . Fastest Speed 95 | 120 95 100 Average Speed 153 | 120 99 182 Slowest Speed 400 | 120 120 400 Overloaded Moves . | . . . Propulsion Burnouts . | . . . Robots Hopped . | . . . Cave-ins Triggered . | . . . Exploration Rate (%) 25 | 2 37 37 Regions Visited 2 Branch Regions . Pre-discovered Areas . | . . . Known Exits Taken . | . . . Unknown Exits Taken 2 | 1 1 . Scrap Searched . | . . . Spaces Dug . | . . . Terrain Destroyed . | . . . Melee . | . . . Projectile . | . . . AOE . | . . . Terrain Rammed . | . . . Walls Destroyed . | . . . Machines Disabled . | . . . Actions | -11 -10 -9 --------- Run | Yrd Mat Mat Total 1248 | 1 415 832 Wait 22 | . 7 15 Move 1025 | 1 358 666 Hop . | . . . Pick Up 23 | . 13 10 Fast Attach 11 | . 4 7 Attach 12 | . 1 11 Detach . | . . . Swap 7 | . 2 5 Drop 13 | . 7 6 Fire 132 | . 23 109 Melee . | . . . Ram 3 | . . 3 Kick . | . . . Crush . | . . . Escape Stasis . | . . . Rewire . | . . . Trap . | . . . Miscellaneous . | . . . Route ------- -11/Scrapyard -10/Materials (discovered 2 exits: *Mat / [*Min]) -9/Materials (discovered 3 exits: Mat x3) History --------- Turn | Location | Event 1 | -11/Scrapyard | Discovered new exit (range 1) 3 | -11/Scrapyard | Entered Materials 135 | -10/Materials | Discovered new exit (range 8) 308 | -10/Materials | Build established: Mutant 453 | -10/Materials | Discovered new exit (range 7) 462 | -10/Materials | Entered another Materials area 462 | -9/Materials | Evolved 2 slots: Utility x2 686 | -9/Materials | Lost 3 parts (1n2w) 766 | -9/Materials | Core integrity fell below 50% 1374 | -9/Materials | Core integrity fell below 20% 1598 | -9/Materials | Lost 3 parts (1p1n1w) 1610 | -9/Materials | Identified exit to Materials 2008 | -9/Materials | Destroyed by G-34 Mercenary with Small Laser Last Messages --------------- 01635_ K-01 Serf collects debris. 01649_ R-06 Scavenger collects Aluminum Leg. 01654_ System corrupted: Matter fused (-6). 01672_ K-01 Serf cleans the Terminal. 01726_ Acquired 6 matter. 01806_ M>NTJ9&6=48GRYF>F7DY8MGBZOJ%W3YI&EWA 01849_ System corrupted: Matter fused (-8). 01868_ System corrupted: Matter fused (-9). 01890_ J9LTSDMB 01978_ Acquired 6 matter. 01978_ K-01 Serf cleans the Fusion Modulator. 01986_ ==TRXHP%Q HHQUNQAD5 HRQ YMGCK>N Map ----- +----------------------------------------------------+ | ???????